[Event "Indian Rapid Championship 2023-24"]
[Site "Nashik"]
[Date "2024.03.05"]
[Round "6.7"]
[White "Ratnakaran, K.."]
[Black "Sengupta, Deep"]
[Result "0-1"]
[ECO "C00"]
[WhiteElo "2258"]
[BlackElo "2500"]
[Annotator "TA"]
[PlyCount "82"]
[EventDate "2024.03.02"]
[EventType "swiss"]
[EventCountry "IND"]
[SourceTitle "playchess.com"]
[Source "ChessBase"]
[SourceQuality "1"]
[TimeControl "900+10"]

{[%evp 9,82,-28,-33,-37,-21,-11,-16,-10,-3,-30,-22,-118,-121,-104,-122,-145,-139,-122,-109,-144,-131,-133,-118,-156,-150,-201,-189,-304,-246,-226,-218,-337,-235,-231,-197,-187,-182,-177,-166,-321,-311,-304,-307,-306,-310,-377,-377,-542,-533,-605,-520,-515,-524,-567,-562,-2112,-1963,-2025,-1905,-29988,-29989,-29989,-29990,-29990,-29991,-29991,-29988,-29987,-29988,-29992,-29993,-29993,-29994,-29994,-29993]} 1. e4 {[%emt 0:00:02]} e6 {[%emt 0:00:01]} 2. d3 {[%emt 0:00:02]} d5 {[%emt 0:00:01]} 3. Nd2 {[%emt 0:00:02]} c5 {[%emt 0:00:01]} 4. Qe2 {[%emt 0:00:01]} Nc6 {[%emt 0:00:16]} 5. Ngf3 {[%emt 0:00:02]} Nge7 {[%emt 0:01:13]} 6. c3 {[%emt 0:00:05]} g6 {[%emt 0:00:04]} 7. h4 {[%emt 0:00:02]} h6 {[%emt 0:00:02]} 8. Nb3 {[%emt 0:00:06] The position is equal.} b6 {[%emt 0:00:06]} 9. Bf4 {[%emt 0:00:06]} Bg7 {[%emt 0:00:07]} 10. O-O-O {[%emt 0:00:04]} (10. e5 $11) 10... d4 $17 {[%emt 0:00:45]} 11. cxd4 {[%emt 0:00:06]} cxd4 {[%emt 0:00:06]} 12. Kb1 {[%emt 0:00:02]} e5 {[%emt 0:00:07]} 13. Bd2 {[%emt 0:00:11]} a5 {[%emt 0:00:07]} 14. Ne1 {[%emt 0:00:12]} Be6 {[%emt 0:00:12]} 15. Nc1 {[%emt 0:00:04]} Qd7 {[%emt 0:04:45] Black is more active.} 16. g3 {[%emt 0:00:02] [#]} Nb4 $1 {[%emt 0:00:30]} 17. Bxb4 {[%emt 0:00:02]} (17. h5 $17) 17... axb4 $19 {[%emt 0:00:01]} 18. b3 {[%emt 0:00:01]} (18. Nc2 {might work better.}) 18... h5 {[%emt 0:00:44]} 19. Bg2 {[%emt 0:00:02]} Bh6 {[%emt 0:00:06] Wards off f4} 20. Rf1 {[%emt 0:00:12] White is weak on the dark squares} (20. f4 $142 exf4 21. gxf4 Bxf4 22. Qb2) 20... Nc6 {[%emt 0:00:53] Threatens to win with ...Na7.} 21. f4 {[%emt 0:00:04]} Bg4 {[%emt 0:00:23]} 22. Bf3 {[%emt 0:00:20]} Na7 $36 {[%emt 0:00:10][%mdl 2048] Black is in control.} ({But not} 22... exf4 23. Bxg4 hxg4 24. gxf4 $15) 23. Bxg4 {[%emt 0:00:04]} hxg4 {[%emt 0:00:02]} 24. Qb2 $2 {[%emt 0:03:53]} (24. Qd2) 24... Nb5 {[%emt 0:00:08]} 25. Ne2 {[%emt 0:00:14]} exf4 {[%emt 0:01:15]} 26. gxf4 {[%emt 0:00:19]} Bg7 {[%emt 0:00:17]} ({Less strong is} 26... Nc3+ 27. Nxc3 bxc3 (27... dxc3 28. Qe2 $17) 28. Qe2 $19) 27. Ng2 {[%emt 0:00:38]} O-O {[%emt 0:01:41]} 28. f5 {[%emt 0:00:02]} (28. Nc1 {was necessary.}) 28... Rfc8 {[%emt 0:00:11] aiming for ...Na3+.} 29. fxg6 {[%emt 0:00:07]} fxg6 {[%emt 0:00:11] Strongly threatening ...Na3+.} 30. Rc1 {[%emt 0:00:10]} Bh6 {[%emt 0:00:06]} 31. Rxc8+ {[%emt 0:00:26]} Rxc8 {[%emt 0:00:02]} 32. Ngf4 {[%emt 0:00:01]} Na3+ {[%emt 0:01:54]} 33. Ka1 {[%emt 0:00:01]} Rc2 {[%emt 0:00:02]} 34. Qxd4 {[%emt 0:00:02]} Bg7 {[%emt 0:00:01] Black mates.} 35. e5 {[%emt 0:00:07]} Qxd4+ {[%emt 0:00:04]} 36. Nxd4 {[%emt 0:00:01]} Bxe5 {[%emt 0:00:01][%cal Re5d4]} 37. Nfe6 {[%emt 0:00:01]} Rc8 {[%emt 0:00:56]} 38. Kb2 {[%emt 0:00:17]} g3 {[%emt 0:00:08]} 39. h5 {[%emt 0:00:15]} g2 {[%emt 0:00:30]} 40. Re1 {[%emt 0:00:18]} Rc2+ {[%emt 0:00:11]} 41. Ka1 {[%emt 0:00:04] [#]} Rf2 $1 {[%emt 0:00:11] White got outplayed after the opening.   Weighted Error Value: White=0.70/Black=0.08 (flawless) .  Mistake:       	White=6     	---        Inaccurate:     	White=4     	Black=1      OK:         	White=10    	Black=12     Best:        	White=2     	Black=1} 0-1

[Event "Indian Rapid Championship 2023-24"]
[Site "Nashik"]
[Date "2024.03.05"]
[Round "6.8"]
[White "Sriram, Jha"]
[Black "Balkishan, A.."]
[Result "1-0"]
[ECO "E11"]
[WhiteElo "2312"]
[BlackElo "2108"]
[Annotator "RC"]
[PlyCount "137"]
[EventDate "2024.03.02"]
[EventType "swiss"]
[EventCountry "IND"]
[SourceTitle "playchess.com"]
[Source "ChessBase"]
[SourceQuality "1"]
[TimeControl "900+10"]

1. d4 {[%emt 0:00:08]} Nf6 {[%emt 0:00:07]} 2. Nf3 {[%emt 0:00:01]} e6 {[%emt 0:00:15]} 3. c4 {[%emt 0:00:19]} Bb4+ {[%emt 0:00:02]} 4. Bd2 {[%emt 0:00:05]} Qe7 {[%emt 0:00:02]} 5. Nc3 {[%emt 0:00:44]} O-O {[%emt 0:00:06]} 6. Qc2 {[%emt 0:00:25]} d6 {[%emt 0:00:11]} 7. a3 {[%emt 0:00:12]} Bxc3 {[%emt 0:00:07]} 8. Bxc3 {[%emt 0:00:02]} b6 {[%emt 0:00:51]} 9. e4 {[%emt 0:00:59]} Bb7 {[%emt 0:00:11]} 10. Bd3 {[%emt 0:00:08]} h6 {[%emt 0:01:29]} 11. O-O {[%emt 0:02:49]} Nfd7 {[%emt 0:00:13]} 12. b4 {[%emt 0:00:27]} c5 {[%emt 0:00:33]} 13. bxc5 {[%emt 0:00:31]} dxc5 {[%emt 0:00:56]} 14. d5 {[%emt 0:00:05]} e5 {[%emt 0:01:43]} 15. Qb2 {[%emt 0:00:23]} Re8 {[%emt 0:00:02]} 16. g3 {[%emt 0:00:21]} Bc8 {[%emt 0:01:19]} 17. Rfe1 {[%emt 0:01:19]} g5 {[%emt 0:02:50]} 18. Bf1 {[%emt 0:00:52]} f6 {[%emt 0:00:39]} 19. Nd2 {[%emt 0:00:53]} Nf8 {[%emt 0:00:31]} 20. a4 {[%emt 0:00:31]} Bg4 {[%emt 0:00:02]} 21. a5 {[%emt 0:00:46]} Nbd7 {[%emt 0:00:01]} 22. f3 {[%emt 0:00:13]} Bh5 {[%emt 0:00:06]} 23. Bh3 {[%emt 0:00:01]} Bg6 {[%emt 0:00:35]} 24. Nf1 {[%emt 0:00:20]} h5 {[%emt 0:01:02]} 25. Ne3 {[%emt 0:00:02]} Reb8 {[%emt 0:00:55]} 26. Bf5 {[%emt 0:00:27]} Be8 {[%emt 0:00:22]} 27. Qc2 {[%emt 0:00:44]} Qd6 {[%emt 0:01:14]} 28. Reb1 {[%emt 0:00:05]} bxa5 {[%emt 0:00:13]} 29. Rxa5 {[%emt 0:00:38]} Rxb1+ {[%emt 0:00:59]} 30. Qxb1 {[%emt 0:00:01]} a6 {[%emt 0:00:29]} 31. Qb7 {[%emt 0:01:37]} Rb8 {[%emt 0:00:10]} 32. Rxa6 {[%emt 0:00:51]} Rxb7 {[%emt 0:01:01]} 33. Rxd6 {[%emt 0:00:01]} Rb3 {[%emt 0:00:02]} 34. Bd2 {[%emt 0:00:19]} Rd3 {[%emt 0:00:01]} 35. Nf1 {[%emt 0:00:42]} Rxf3 {[%emt 0:00:02]} 36. Be3 {[%emt 0:00:14]} Kf7 {[%emt 0:00:55]} 37. Kg2 {[%emt 0:00:27]} g4 {[%emt 0:00:01]} 38. h3 {[%emt 0:00:23]} Ke7 {[%emt 0:00:04]} 39. Ra6 {[%emt 0:00:06]} Bg6 {[%emt 0:00:25]} 40. hxg4 {[%emt 0:00:09]} Bxf5 {[%emt 0:00:07]} 41. gxf5 {[%emt 0:00:12]} Rxe3 {[%emt 0:00:32]} 42. Nxe3 {[%emt 0:00:01]} Nh7 {[%emt 0:00:01]} 43. d6+ {[%emt 0:00:27]} Kf7 {[%emt 0:00:07]} 44. Ra7 {[%emt 0:00:16]} Ke8 {[%emt 0:00:01]} 45. Nd5 {[%emt 0:00:14]} Ng5 {[%emt 0:00:37]} 46. Nc7+ {[%emt 0:00:11]} Kf7 {[%emt 0:00:10]} 47. Ne6 {[%emt 0:00:02]} Ke8 {[%emt 0:00:04]} 48. Nxg5 {[%emt 0:00:46]} fxg5 {[%emt 0:00:02]} 49. Kf3 {[%emt 0:00:11]} g4+ {[%emt 0:00:20]} 50. Ke3 {[%emt 0:00:12]} Nb6 {[%emt 0:00:02]} 51. Kd3 {[%emt 0:00:38]} Nd7 {[%emt 0:00:09]} 52. Ke3 {[%emt 0:00:10]} Nb6 {[%emt 0:00:01]} 53. Re7+ {[%emt 0:00:01]} Kd8 {[%emt 0:00:24]} 54. Kd3 {[%emt 0:00:01]} Nd7 {[%emt 0:00:01]} 55. Re6 {[%emt 0:00:49]} Nb8 {[%emt 0:00:38]} 56. f6 {[%emt 0:00:10]} Kd7 {[%emt 0:00:06]} 57. f7 {[%emt 0:00:12]} Kxe6 {[%emt 0:00:14]} 58. f8=Q {[%emt 0:00:01]} Nc6 {[%emt 0:00:05]} 59. Ke3 {[%emt 0:00:13]} Kd7 {[%emt 0:00:02]} 60. Qf6 {[%emt 0:00:17]} h4 {[%emt 0:00:24]} 61. gxh4 {[%emt 0:00:06]} g3 {[%emt 0:00:02]} 62. Kf3 {[%emt 0:00:16]} g2 {[%emt 0:00:22]} 63. Kxg2 {[%emt 0:00:02]} Kc8 {[%emt 0:00:08]} 64. Qf7 {[%emt 0:00:11]} Kb8 {[%emt 0:00:05]} 65. Qc7+ {[%emt 0:00:02]} Ka8 {[%emt 0:00:01]} 66. Qxc6+ {[%emt 0:00:03]} Ka7 {[%emt 0:00:01]} 67. d7 {[%emt 0:00:22]} Kb8 {[%emt 0:00:01]} 68. d8=Q+ {[%emt 0:00:03]} Ka7 {[%emt 0:00:02]} 69. Qdb6# {[%emt 0:00:01]} 1-0

[Event "Indian Rapid Championship 2023-24"]
[Site "Nashik"]
[Date "2024.03.05"]
[Round "6.9"]
[White "Srihari L"]
[Black "Mohammad Nubairshah Shaikh"]
[Result "1-0"]
[ECO "B18"]
[WhiteElo "2400"]
[BlackElo "2436"]
[Annotator "TA"]
[PlyCount "71"]
[EventDate "2024.03.02"]
[EventType "swiss"]
[EventCountry "IND"]
[SourceTitle "playchess.com"]
[Source "ChessBase"]
[SourceQuality "1"]
[TimeControl "900+10"]

{[%evp 16,71,6,0,0,0,0,0,0,0,11,0,0,0,8,0,25,9,66,18,76,82,63,70,149,145,188,186,193,190,243,238,470,464,473,473,962,962,843,962,907,942,908,901,1177,1130,1021,775,6419,6419,29987,29988,29990,6181,5306,2656,2066,1949]} 1. e4 {[%emt 0:00:01]} c6 {[%emt 0:00:00]} 2. d4 {[%emt 0:00:01]} d5 {[%emt 0:00:01]} 3. Nc3 {[%emt 0:00:02]} dxe4 {[%emt 0:00:03]} 4. Nxe4 {[%emt 0:00:01]} Bf5 {[%emt 0:00:01]} 5. Ng3 {[%emt 0:00:02]} Bg6 {[%emt 0:00:00]} 6. Bc4 {[%emt 0:00:02]} e6 {[%emt 0:00:07]} 7. N1e2 {[%emt 0:00:03]} Nf6 {[%emt 0:00:21]} 8. Nf4 {[%emt 0:00:05]} Bd6 {[%emt 0:00:01]} 9. c3 {[%emt 0:01:38]} Qc7 {[%emt 0:00:02]} 10. Qf3 {[%emt 0:00:13]} Nbd7 {[%emt 0:06:09]} 11. O-O {[%emt 0:02:31]} O-O {[%emt 0:00:09] The position is equal.} 12. Nxg6 {[%emt 0:01:12]} hxg6 {[%emt 0:00:02]} 13. Bb3 {[%emt 0:00:01]} c5 {[%emt 0:01:24]} 14. dxc5 {[%emt 0:00:31]} Nxc5 {[%emt 0:00:41]} 15. Bc2 {[%emt 0:00:03]} Nd5 {[%emt 0:00:03]} 16. h4 {[%emt 0:02:22]} f5 {[%emt 0:02:39]} (16... Bxg3 $11 17. Qxg3 Qxg3 18. fxg3 b5) 17. Bg5 {[%emt 0:00:20]} (17. Ne2 $14) 17... Bf4 {[%emt 0:00:13]} (17... Nf6 $11 {keeps the balance.}) 18. Ne2 $16 {[%emt 0:01:15]} Bxg5 {[%emt 0:00:56]} 19. hxg5 {[%emt 0:00:02]} Kf7 {[%emt 0:01:04] White stays focused until the end.} (19... a5 $14) 20. g3 {[%emt 0:01:11]} Qe7 {[%emt 0:00:04]} 21. Nd4 {[%emt 0:01:00] aiming for b4.} Rad8 {[%emt 0:00:26][%cal Oe6e5]} (21... Qxg5 $2 22. b4 (22. Nxe6 Nxe6 23. Qxd5 Rad8 $18) 22... Na6 (22... Nd7 $2 23. Rfe1 $18) 23. Rfe1 $18 (23. Nxe6 Kxe6 24. Rfe1+ Kd6 $18)) 22. Rfe1 {[%emt 0:00:29] Threatens to win with b4.} a5 {[%emt 0:00:17]} (22... Qxg5 $2 23. b4 $18) (22... Kg8 $142 23. Re5 Rd6) 23. Rad1 $18 {[%emt 0:00:43][%cal Od4e6] Hoping for Nxe6!} Rh8 $2 {[%emt 0:00:30] [#]} (23... Qxg5 $2 24. Nxe6 Nxe6 25. Rxd5 $18) (23... Kg8 24. Nb3 Ne4) 24. Nxe6 $1 {[%emt 0:01:44][%mdl 512]} Nxe6 {[%emt 0:00:45]} 25. Rxd5 {[%emt 0:00:03]} Qxg5 {[%emt 0:00:22] [#]} (25... Rxd5 $142 26. Qxd5 Rd8 27. Qxa5 Qc5 28. Qxc5 Nxc5) 26. Bxf5 $1 {[%emt 0:00:11][%mdl 512]} gxf5 {[%emt 0:01:23]} 27. Rxf5+ {[%emt 0:00:02]} (27. Rxa5 Kf6 $11) 27... Kg8 {[%emt 0:00:01]} 28. Rxg5 {[%emt 0:00:25]} (28. Rxe6 {gets mated.} Qc1+) 28... Nxg5 {[%emt 0:00:02]} 29. Qf5 {[%emt 0:00:16]} Rh5 {[%emt 0:00:01]} 30. Qg4 {[%emt 0:00:50]} (30. Qxa5 $2 {too greedy.} Nf3+ 31. Kf1 Rxa5 $19) 30... g6 {[%emt 0:00:00]} 31. Kg2 {[%emt 0:00:22]} Rd2 {[%emt 0:00:31]} 32. Re7 {[%emt 0:00:27] White threatens Qc8+ and mate.} Kf8 {[%emt 0:00:29]} 33. Rxb7 {[%emt 0:00:09]} Nf7 {[%emt 0:00:02] [#]} 34. Rxf7+ $1 {[%emt 0:00:03]} Kxf7 {[%emt 0:00:01]} 35. Qf4+ {[%emt 0:00:02]} Rf5 {[%emt 0:00:02]} 36. Qxd2 {[%emt 0:00:01] Weighted Error Value: White=0.08 (flawless) /Black=0.74.  Mistake:       	White=1     	Black=6      OK:         	White=10    	Black=5} 1-0

[Event "Indian Rapid Championship 2023-24"]
[Site "Nashik"]
[Date "2024.03.05"]
[Round "6.10"]
[White "Nitin, S.."]
[Black "Abhishek, Kelkar"]
[Result "1-0"]
[ECO "B46"]
[WhiteElo "2338"]
[BlackElo "2182"]
[Annotator "RC"]
[PlyCount "55"]
[EventDate "2024.03.02"]
[EventType "swiss"]
[EventCountry "IND"]
[SourceTitle "playchess.com"]
[Source "ChessBase"]
[SourceQuality "1"]
[TimeControl "900+10"]

1. e4 {[%emt 0:00:13]} c5 {[%emt 0:00:18]} 2. Nf3 {[%emt 0:00:24]} e6 {[%emt 0:01:03]} 3. d4 {[%emt 0:00:03]} cxd4 {[%emt 0:00:06]} 4. Nxd4 {[%emt 0:00:04]} a6 {[%emt 0:00:50]} 5. Nc3 {[%emt 0:00:07]} Ne7 {[%emt 0:00:14]} 6. Be2 {[%emt 0:01:06]} Nbc6 {[%emt 0:00:05]} 7. Nb3 {[%emt 0:00:07]} Ng6 {[%emt 0:00:28]} 8. O-O {[%emt 0:00:11]} Be7 {[%emt 0:00:06]} 9. a4 {[%emt 0:00:28]} b6 {[%emt 0:00:02]} 10. Be3 {[%emt 0:00:14]} Bb7 {[%emt 0:00:10]} 11. Nd2 {[%emt 0:00:30]} Na5 {[%emt 0:01:00]} 12. f4 {[%emt 0:00:55]} Rc8 {[%emt 0:00:24]} 13. Nf3 {[%emt 0:00:06]} O-O {[%emt 0:04:23]} 14. f5 {[%emt 0:01:19]} Nh4 {[%emt 0:00:56]} 15. Nxh4 {[%emt 0:01:42]} Bxh4 {[%emt 0:00:04]} 16. Qd6 {[%emt 0:01:53]} Rc6 {[%emt 0:01:23]} 17. Qd4 {[%emt 0:00:12]} Be7 {[%emt 0:03:42]} 18. Rad1 {[%emt 0:01:29]} Rd6 {[%emt 0:00:23]} 19. Qe5 {[%emt 0:00:02]} Nc6 {[%emt 0:00:51]} 20. Qg3 {[%emt 0:00:26]} Rxd1 {[%emt 0:00:02]} 21. Rxd1 {[%emt 0:00:21]} Bf6 {[%emt 0:01:52]} 22. Qf2 {[%emt 0:00:09]} Nb4 {[%emt 0:00:14]} 23. Bxb6 {[%emt 0:00:11]} Qa8 {[%emt 0:00:07]} 24. Bc5 {[%emt 0:00:29]} Nxc2 {[%emt 0:00:05]} 25. Bxf8 {[%emt 0:01:06]} Kxf8 {[%emt 0:00:06]} 26. Rxd7 {[%emt 0:01:15]} Qc8 {[%emt 0:00:09]} 27. fxe6 {[%emt 0:00:08]} fxe6 {[%emt 0:00:10]} 28. Rd2 {[%emt 0:00:07]} 1-0

[Event "Indian Rapid Championship 2023-24"]
[Site "Nashik"]
[Date "2024.03.05"]
[Round "7.2"]
[White "Sammed Jaykumar, Shete"]
[Black "Raja Rithvik R"]
[Result "1/2-1/2"]
[ECO "B22"]
[WhiteElo "2404"]
[BlackElo "2532"]
[Annotator "TA"]
[PlyCount "73"]
[EventDate "2024.03.02"]
[EventType "swiss"]
[EventCountry "IND"]
[SourceTitle "playchess.com"]
[Source "ChessBase"]
[SourceQuality "1"]
[TimeControl "900+10"]

{[%evp 20,73,0,0,4,0,12,16,11,11,8,2,25,22,16,19,22,15,25,19,21,18,20,27,27,32,29,37,33,34,33,32,27,25,31,28,37,3,9,7,6,6,4,0,0,0,0,0,0,0,0,0,0,0,0,0]} 1. e4 {[%emt 0:00:02][%cal Be2e4,Be4e5][%mdl 32]} c5 {[%emt 0:00:01]} 2. c3 {[%emt 0:00:01]} Nf6 {[%emt 0:00:17]} 3. e5 {[%emt 0:00:04]} Nd5 {[%emt 0:00:02]} 4. Nf3 {[%emt 0:00:01]} d6 {[%emt 0:00:12]} 5. exd6 {[%emt 0:00:24]} e6 {[%emt 0:00:08]} 6. g3 {[%emt 0:00:11]} Bxd6 {[%emt 0:00:07]} 7. Bg2 {[%emt 0:00:03]} O-O {[%emt 0:00:06]} 8. d4 {[%emt 0:00:17]} Nc6 {[%emt 0:00:11]} 9. O-O {[%emt 0:00:10]} cxd4 {[%emt 0:00:05]} 10. Nxd4 {[%emt 0:00:02]} Nxd4 {[%emt 0:00:02]} 11. Qxd4 {[%emt 0:00:02][%cal Ob1d2]} Qc7 {[%emt 0:00:02]} 12. c4 {[%emt 0:01:29]} Be5 {[%emt 0:00:49]} 13. Qe4 {[%emt 0:00:43]} Nf6 {[%emt 0:00:26]} 14. Qe2 {[%emt 0:00:12]} Bd7 {[%emt 0:00:03]} 15. Nd2 {[%emt 0:00:03][%cal Bb1d2,Bd2f3,Bf3g5][%mdl 32]} Rac8 {[%emt 0:00:43]} 16. Nf3 {[%emt 0:00:39]} Bd6 {[%emt 0:00:02]} 17. b3 {[%emt 0:00:13]} Bc6 {[%emt 0:00:23]} 18. Bb2 {[%emt 0:00:20]} Qe7 {[%emt 0:00:19]} 19. Rad1 {[%emt 0:01:45]} Rfd8 {[%emt 0:00:24]} 20. Ng5 {[%emt 0:01:32]} Bxg2 {[%emt 0:00:16]} 21. Kxg2 {[%emt 0:00:02]} h6 {[%emt 0:03:14]} 22. Bxf6 {[%emt 0:03:49]} Qxf6 {[%emt 0:00:04]} 23. Ne4 {[%emt 0:00:01][%csl LRd6,LRf6]} Qe7 {[%emt 0:00:04]} 24. Nxd6 {[%emt 0:00:29]} Rxd6 {[%emt 0:00:02]} 25. Rxd6 {[%emt 0:00:01]} Qxd6 $14 {[%emt 0:00:01][%mdl 4096] Endgame. KQR-KQR} 26. Rd1 {[%emt 0:00:00]} Qc7 {[%emt 0:01:34]} 27. Qd3 {[%emt 0:00:04]} a6 {[%emt 0:00:06][%cal Ob7b5]} 28. Qd7 {[%emt 0:00:58]} Qxd7 {[%emt 0:02:05] The position is equal.} 29. Rxd7 $11 {[%emt 0:00:02] KR-KR} b5 {[%emt 0:00:01]} 30. cxb5 {[%emt 0:04:12]} axb5 {[%emt 0:00:02]} 31. Rb7 {[%emt 0:00:01]} Ra8 {[%emt 0:00:12]} 32. Rxb5 {[%emt 0:00:03] [#] Strongly threatening a4.} Rxa2 {[%emt 0:00:01]} 33. h4 {[%emt 0:00:11]} g6 {[%emt 0:00:10]} 34. Kf3 {[%emt 0:00:16]} Kg7 {[%emt 0:00:11]} 35. g4 {[%emt 0:00:09]} Rb2 {[%emt 0:00:29]} 36. g5 {[%emt 0:00:12]} Rb1 {[%emt 0:00:02]} 37. Kg2 {[%emt 0:00:54] Weighted Error Value: White=0.02 (flawless) /Black=0.03 (flawless) .  Inaccurate:     	White=1     	---        OK:         	White=12    	Black=14     Best:        	---       	Black=1} 1/2-1/2

[Event "Indian Rapid Championship 2023-24"]
[Site "Nashik"]
[Date "2024.03.05"]
[Round "7.3"]
[White "Sengupta, Deep"]
[Black "Hari Madhavan N B"]
[Result "1/2-1/2"]
[ECO "C02"]
[WhiteElo "2500"]
[BlackElo "2395"]
[Annotator "TA"]
[PlyCount "93"]
[EventDate "2024.03.02"]
[EventType "swiss"]
[EventCountry "IND"]
[SourceTitle "playchess.com"]
[Source "ChessBase"]
[SourceQuality "1"]
[TimeControl "900+10"]

{[%evp 12,93,28,-17,-15,-20,0,-25,0,0,0,0,8,0,0,0,0,0,0,0,0,-44,-56,-51,-55,-55,-54,-53,-51,-53,-50,-45,-40,-66,-15,-34,0,0,41,43,48,-3,-3,-3,0,0,0,0,0,-33,-31,-28,-27,-31,-27,-75,-69,-74,-69,-98,-100,-98,-23,-19,0,0,-8,-8,0,0,0,0,0,0,0,0,0,0,0,0,0,0,0,0]} 1. e4 {[%emt 0:00:02]} e6 {[%emt 0:00:08]} 2. d4 {[%emt 0:00:10]} d5 {[%emt 0:00:02]} 3. e5 {[%emt 0:00:02]} c5 {[%emt 0:00:03]} 4. c3 {[%emt 0:00:01]} Nc6 {[%emt 0:00:02]} 5. Nf3 {[%emt 0:00:02]} Qb6 {[%emt 0:00:02]} 6. Bd3 {[%emt 0:00:31]} Bd7 {[%emt 0:00:01]} 7. O-O {[%emt 0:00:02]} cxd4 {[%emt 0:00:12]} 8. Re1 {[%emt 0:00:12]} Nh6 {[%emt 0:00:16]} 9. h3 {[%emt 0:00:27]} Nf5 {[%emt 0:00:06] Black has an edge.} 10. Bxf5 {[%emt 0:00:47]} exf5 {[%emt 0:00:02]} 11. cxd4 {[%emt 0:00:02]} h6 {[%emt 0:00:47]} 12. Nc3 {[%emt 0:00:33]} Be6 {[%emt 0:00:02]} 13. h4 {[%emt 0:01:10]} Be7 {[%emt 0:00:10]} 14. Na4 {[%emt 0:00:31]} Qb5 {[%emt 0:00:22]} 15. Be3 {[%emt 0:00:11]} O-O {[%emt 0:00:08]} 16. Nc5 {[%emt 0:01:53]} Bxc5 {[%emt 0:04:06]} 17. dxc5 {[%emt 0:00:03]} Qxb2 {[%emt 0:00:02]} 18. Nd4 {[%emt 0:05:49]} f4 {[%emt 0:03:23]} (18... Nxe5 $2 19. Nxe6 (19. Bxh6 Ng4 $14) 19... fxe6 20. Bd4 $18) 19. Rb1 {[%emt 0:00:45]} Qxa2 {[%emt 0:00:24]} 20. Bxf4 {[%emt 0:00:18]} Nxd4 {[%emt 0:03:02]} 21. Qxd4 {[%emt 0:00:03]} Qc4 {[%emt 0:00:33]} 22. Qd2 {[%emt 0:02:57]} Kh7 {[%emt 0:01:20]} (22... Qxc5 $15 23. Bxh6 Rfc8 (23... gxh6 24. Qxh6 Qc2 25. Rb3 $11) 24. Bxg7 (24. Qg5 Qf8 $11) 24... Kxg7 25. Qg5+ Kf8 26. Rxb7 Ke8) 23. Rec1 {[%emt 0:00:11]} Qe4 {[%emt 0:00:02]} 24. Rxb7 {[%emt 0:00:35]} d4 {[%emt 0:01:03]} 25. Rb4 {[%emt 0:00:33]} ({Much weaker is} 25. c6 a5 $11) 25... Rfd8 {[%emt 0:00:03]} 26. Rd1 {[%emt 0:01:09] White is weak on the light squares} (26. f3 $14 Qc6 27. Rxd4 Rxd4 28. Qxd4) 26... Rac8 $11 {[%emt 0:00:42]} 27. Rxd4 {[%emt 0:00:19]} (27. f3 {is interesting.} Qc6 28. Rxd4 Rxd4 29. Qxd4 Qxc5 30. Be3) 27... Rxd4 $40 {[%emt 0:00:04][%mdl 128] Black is up to no good.} 28. Qxd4 {[%emt 0:00:01]} Qxd4 {[%emt 0:00:01]} 29. Rxd4 {[%emt 0:00:02]} Rxc5 {[%emt 0:00:02][%mdl 4096] Endgame. KRB-KRB} 30. Rd8 {[%emt 0:00:33]} a5 {[%emt 0:00:06]} 31. Ra8 {[%emt 0:00:02]} Rc4 {[%emt 0:00:06]} 32. Be3 {[%emt 0:00:12]} a4 {[%emt 0:00:08][%cal Oh7g6]} 33. Ra7 {[%emt 0:00:03]} (33. g3 $11 {is superior.}) 33... Rxh4 $17 {[%emt 0:00:06]} 34. f4 {[%emt 0:00:02][%cal Bf2f4,Bf4f5][%mdl 32]} Bb3 {[%emt 0:00:47]} 35. g3 {[%emt 0:00:02] [#]} Rg4 {[%emt 0:00:03]} 36. Kf2 {[%emt 0:00:20] [#]} Rg6 {[%emt 0:00:32]} (36... Kg6 $1 $17 37. e6 fxe6 (37... Bxe6 38. Rxa4 h5 39. Ra1 $11)) 37. f5 $11 {[%emt 0:00:11]} Rc6 {[%emt 0:00:01] The position is equal.} 38. e6 {[%emt 0:00:02]} fxe6 {[%emt 0:00:15]} 39. Bd4 {[%emt 0:00:36]} Rc2+ {[%emt 0:01:32]} (39... exf5 $2 {loses.} 40. Rxg7+ Kh8 41. Rc7+ Kg8 42. Rxc6 $18) 40. Ke3 {[%emt 0:00:01]} exf5 {[%emt 0:00:03]} 41. Rxg7+ {[%emt 0:00:02]} Kh8 {[%emt 0:00:01]} 42. Rg6+ {[%emt 0:00:22]} Kh7 {[%emt 0:00:01]} 43. Rg7+ {[%emt 0:00:01]} Kh8 {[%emt 0:00:01]} 44. Rg5+ {[%emt 0:00:01]} Kh7 {[%emt 0:00:02]} 45. Rg7+ {[%emt 0:00:00]} Kh8 {[%emt 0:00:01]} 46. Rg6+ {[%emt 0:00:35]} Kh7 {[%emt 0:00:01]} 47. Rg7+ {[%emt 0:00:19] Weighted Error Value: White=0.09 (flawless) /Black=0.11 (very precise) .  Mistake:       	White=2     	Black=2      Inaccurate:     	White=4     	Black=2      OK:         	White=17    	Black=19     Best:        	White=3     	---} 1/2-1/2